[Event "Israeli Open Championship 2019"]
[Site "Jerusalem"]
[Date "2019.12.22"]
[Round "9.16"]
[White "Gruzman, Ilya"]
[Black "Freiman, Mark"]
[Result "1-0"]
[ECO "E02"]
[WhiteElo "1889"]
[BlackElo "1724"]
[Annotator "NA"]
[PlyCount "93"]
[EventDate "2019.12.12"]
[EventType "swiss"]
[EventCountry "ISR"]
[SourceTitle "playchess.com"]
[Source "ChessBase"]
[SourceQuality "1"]
[TimeControl "5400+30"]

1. d4 {[%emt 0:00:00]} Nf6 {[%emt 0:00:00]} 2. c4 {[%emt 0:00:00]} e6 {[%emt 0:00:00]} 3. g3 {[%emt 0:00:00]} d5 {[%emt 0:00:33]} 4. Nf3 {[%emt 0:00:00]} Be7 {[%emt 0:00:55]} 5. Bg2 {[%emt 0:00:00]} O-O {[%emt 0:00:18]} 6. O-O {[%emt 0:00:00]} dxc4 {[%emt 0:02:32]} 7. Qc2 {[%emt 0:00:00]} Nbd7 {[%emt 0:02:25]} 8. Qxc4 {[%emt 0:00:53]} c6 {[%emt 0:03:07]} 9. Nc3 {[%emt 0:01:07]} Re8 {[%emt 0:01:18]} 10. Rd1 {[%emt 0:01:37]} h6 {[%emt 0:02:51]} 11. a4 {[%emt 0:03:44]} Qa5 {[%emt 0:10:57]} 12. Bd2 {[%emt 0:10:39]} Bb4 {[%emt 0:10:53]} 13. Ne5 {[%emt 0:09:22]} Nxe5 {[%emt 0:12:57]} 14. dxe5 {[%emt 0:00:11]} Nd7 {[%emt 0:00:32]} 15. f4 {[%emt 0:04:53]} Qc5+ {[%emt 0:02:48]} 16. Qxc5 {[%emt 0:00:05]} Bxc5+ {[%emt 0:00:19]} 17. Kf1 {[%emt 0:00:39]} Be7 {[%emt 0:01:25]} 18. Rab1 {[%emt 0:07:16]} f6 {[%emt 0:01:47]} 19. exf6 {[%emt 0:00:39]} Nxf6 {[%emt 0:03:11]} 20. b4 {[%emt 0:07:30]} e5 {[%emt 0:00:27]} 21. b5 {[%emt 0:01:53]} e4 {[%emt 0:14:53]} 22. bxc6 {[%emt 0:01:55]} bxc6 {[%emt 0:00:39]} 23. Nxe4 {[%emt 0:01:32]} Ba6 {[%emt 0:08:56]} 24. Nc3 {[%emt 0:06:45]} Rac8 {[%emt 0:01:56]} 25. Bf3 {[%emt 0:00:53]} Bc5 {[%emt 0:00:41]} 26. Kg2 {[%emt 0:02:11]} Bd4 {[%emt 0:00:56]} 27. Re1 {[%emt 0:02:08]} h5 {[%emt 0:03:16]} 28. Rbc1 {[%emt 0:02:56]} Ng4 {[%emt 0:02:27]} 29. Nd1 {[%emt 0:03:46]} c5 {[%emt 0:03:57]} 30. e3 {[%emt 0:00:41]} Bf6 {[%emt 0:00:10]} 31. h3 {[%emt 0:00:50]} Nh6 {[%emt 0:00:26]} 32. e4 {[%emt 0:02:03]} g6 {[%emt 0:01:29]} 33. e5 {[%emt 0:01:19]} Be7 {[%emt 0:00:26]} 34. Ne3 {[%emt 0:00:40]} Kg7 {[%emt 0:00:35]} 35. Bc3 {[%emt 0:03:02]} Kh7 {[%emt 0:00:29]} 36. Red1 {[%emt 0:00:36]} Rcd8 {[%emt 0:00:47]} 37. Nd5 {[%emt 0:01:39]} Nf5 {[%emt 0:00:33]} 38. Kf2 {[%emt 0:00:28]} Rc8 {[%emt 0:01:44]} 39. g4 {[%emt 0:00:39]} Bh4+ {[%emt 0:01:16]} 40. Kg2 {[%emt 0:01:16]} Nd4 {[%emt 0:01:07]} 41. Bxd4 {[%emt 0:00:06]} cxd4 {[%emt 0:00:03]} 42. Nc7 {[%emt 0:00:48]} d3 {[%emt 0:00:59]} 43. Nxe8 {[%emt 0:02:51]} Rxe8 {[%emt 0:00:39]} 44. Be4 {[%emt 0:01:22]} Rd8 {[%emt 0:00:58]} 45. Rc6 {[%emt 0:00:58]} Bc8 {[%emt 0:01:16]} 46. Rc7+ {[%emt 0:00:21]} Kh8 {[%emt 0:00:23]} 47. Rxd3 {[%emt 0:00:11]} 1-0

[Event "Israeli Open Championship 2019"]
[Site "Jerusalem"]
[Date "2019.12.22"]
[Round "9.17"]
[White "Bulkovstein, David"]
[Black "Kochavi, Dana"]
[Result "1-0"]
[ECO "B12"]
[WhiteElo "1889"]
[BlackElo "1445"]
[Annotator "NA"]
[PlyCount "75"]
[EventDate "2019.12.12"]
[EventType "swiss"]
[EventCountry "ISR"]
[SourceTitle "playchess.com"]
[Source "ChessBase"]
[SourceQuality "1"]
[TimeControl "5400+30"]

1. e4 {[%emt 0:00:00]} c6 {[%emt 0:00:00]} 2. d4 {[%emt 0:00:00]} d5 {[%emt 0:00:00]} 3. e5 {[%emt 0:00:00]} Bf5 {[%emt 0:00:00]} 4. Be3 {[%emt 0:00:00]} e6 {[%emt 0:03:06]} 5. Nf3 {[%emt 0:00:26]} Qb6 {[%emt 0:12:42]} 6. Qc1 {[%emt 0:04:53]} c5 {[%emt 0:01:45]} 7. Be2 {[%emt 0:07:08]} Nc6 {[%emt 0:01:07]} 8. c3 {[%emt 0:00:28]} Nh6 {[%emt 0:03:29]} 9. Nbd2 {[%emt 0:06:16]} Ng4 {[%emt 0:02:21]} 10. O-O {[%emt 0:04:39]} Nxe3 {[%emt 0:01:10]} 11. fxe3 {[%emt 0:00:15]} Be7 {[%emt 0:00:20]} 12. a3 {[%emt 0:10:50]} c4 {[%emt 0:03:37]} 13. Re1 {[%emt 0:02:52]} h5 {[%emt 0:09:35]} 14. Bd1 {[%emt 0:04:34]} O-O-O {[%emt 0:11:49]} 15. e4 {[%emt 0:08:30]} Bh7 {[%emt 0:00:02]} 16. exd5 {[%emt 0:11:33]} exd5 {[%emt 0:00:03]} 17. Bc2 {[%emt 0:00:36]} Bxc2 {[%emt 0:00:18]} 18. Qxc2 {[%emt 0:00:01]} Kb8 {[%emt 0:00:31]} 19. b3 {[%emt 0:08:46]} cxb3 {[%emt 0:04:29]} 20. Nxb3 {[%emt 0:01:02]} g5 {[%emt 0:00:24]} 21. a4 {[%emt 0:03:44]} g4 {[%emt 0:00:47]} 22. Nfd2 {[%emt 0:00:33]} Na5 {[%emt 0:15:19]} 23. Rab1 {[%emt 0:02:35]} Rc8 {[%emt 0:01:09]} 24. Nc5 {[%emt 0:05:21]} Qd8 {[%emt 0:00:22]} 25. Ndb3 {[%emt 0:02:17]} Bxc5 {[%emt 0:00:10]} 26. Nxc5 {[%emt 0:00:19]} Ka8 {[%emt 0:00:40]} 27. Qf5 {[%emt 0:05:27]} b6 {[%emt 0:00:53]} 28. Nb3 {[%emt 0:01:50]} Nxb3 {[%emt 0:01:33]} 29. Rxb3 {[%emt 0:00:01]} Qe7 {[%emt 0:01:38]} 30. Rf1 {[%emt 0:01:14]} Rce8 {[%emt 0:00:54]} 31. Qxf7 {[%emt 0:00:49]} Qxf7 {[%emt 0:00:00]} 32. Rxf7 {[%emt 0:00:00]} Rhf8 {[%emt 0:00:10]} 33. Rxf8 {[%emt 0:00:34]} Rxf8 {[%emt 0:00:06]} 34. Rb5 {[%emt 0:03:14]} Rd8 {[%emt 0:00:14]} 35. Kf2 {[%emt 0:01:08]} Kb7 {[%emt 0:00:08]} 36. Kg3 {[%emt 0:01:25]} Kc6 {[%emt 0:00:13]} 37. Rb2 {[%emt 0:00:55]} Rh8 {[%emt 0:00:22]} 38. Rf2 {[%emt 0:04:45]} 1-0

[Event "Israeli Open Championship 2019"]
[Site "Jerusalem"]
[Date "2019.12.22"]
[Round "9.18"]
[White "Birnboim, Nathan"]
[Black "Tadmor, Maya"]
[Result "1-0"]
[ECO "D72"]
[WhiteElo "2393"]
[BlackElo "1599"]
[Annotator "ChessBase"]
[PlyCount "103"]
[EventDate "2019.12.12"]
[EventType "swiss"]
[EventCountry "ISR"]
[SourceTitle "playchess.com"]
[Source "ChessBase"]
[SourceQuality "1"]
[TimeControl "5400+30"]

1. d4 {[%emt 0:00:42]} Nf6 {[%emt 0:00:00]} 2. c4 {[%emt 0:00:02]} g6 {[%emt 0:00:00]} 3. g3 {[%emt 0:00:08]} Bg7 {[%emt 0:00:26]} 4. Bg2 {[%emt 0:00:05]} d5 {[%emt 0:02:09]} 5. cxd5 {[%emt 0:00:12]} Nxd5 {[%emt 0:00:24]} 6. e4 {[%emt 0:00:19]} Nb6 {[%emt 0:01:18]} 7. Ne2 {[%emt 0:00:08]} c5 {[%emt 0:02:36]} 8. d5 {[%emt 0:00:14]} O-O {[%emt 0:03:02]} 9. O-O {[%emt 0:00:20]} N8d7 {[%emt 0:10:43]} 10. Na3 {[%emt 0:02:30]} Re8 {[%emt 0:16:41]} 11. f4 {[%emt 0:08:46]} e5 {[%emt 0:05:23]} 12. f5 {[%emt 0:06:20]} Nf6 {[%emt 0:03:02]} 13. fxg6 {[%emt 0:02:06]} hxg6 {[%emt 0:03:23]} 14. Nc3 {[%emt 0:05:14]} a6 {[%emt 0:07:00]} 15. Bg5 {[%emt 0:06:12]} Nbd7 {[%emt 0:09:00]} 16. Nc4 {[%emt 0:02:20]} b5 {[%emt 0:02:37]} 17. Nd6 {[%emt 0:00:59]} Rf8 {[%emt 0:01:14]} 18. Qf3 {[%emt 0:03:44]} Qb6 {[%emt 0:01:24]} 19. Nxc8 {[%emt 0:00:14]} Raxc8 {[%emt 0:00:11]} 20. Bh3 {[%emt 0:01:24]} Rce8 {[%emt 0:06:24]} 21. a4 {[%emt 0:08:38]} b4 {[%emt 0:02:12]} 22. a5 {[%emt 0:00:16]} Qc7 {[%emt 0:02:25]} 23. Na4 {[%emt 0:03:48]} Qxa5 {[%emt 0:04:15]} 24. Rfc1 {[%emt 0:01:14]} Qc7 {[%emt 0:07:18]} 25. Bxf6 {[%emt 0:01:47]} Nxf6 {[%emt 0:00:52]} 26. Nxc5 {[%emt 0:00:45]} Ra8 {[%emt 0:02:12]} 27. Kh1 {[%emt 0:02:31]} Qb6 {[%emt 0:02:06]} 28. Rc4 {[%emt 0:03:11]} Rfd8 {[%emt 0:02:29]} 29. Na4 {[%emt 0:04:23]} Qb7 {[%emt 0:01:42]} 30. Rc6 {[%emt 0:03:25]} Ne8 {[%emt 0:01:10]} 31. Nb6 {[%emt 0:02:28]} Rab8 {[%emt 0:00:38]} 32. Nc4 {[%emt 0:01:03]} Ra8 {[%emt 0:00:46]} 33. b3 {[%emt 0:01:04]} Ra7 {[%emt 0:00:33]} 34. Ra5 {[%emt 0:04:54]} Qe7 {[%emt 0:00:47]} 35. Qf2 {[%emt 0:04:25]} Rc7 {[%emt 0:00:32]} 36. Rxc7 {[%emt 0:02:40]} Qxc7 {[%emt 0:00:20]} 37. Rxa6 {[%emt 0:00:15]} Nd6 {[%emt 0:00:21]} 38. Rc6 {[%emt 0:07:33]} Qe7 {[%emt 0:00:21]} 39. Qe1 {[%emt 0:02:16]} Nb5 {[%emt 0:00:37]} 40. Rb6 {[%emt 0:01:06]} Nc3 {[%emt 0:00:35]} 41. d6 {[%emt 0:00:47]} Qf6 {[%emt 0:00:45]} 42. Rxb4 {[%emt 0:01:13]} Qf3+ {[%emt 0:00:30]} 43. Bg2 {[%emt 0:00:05]} Qd3 {[%emt 0:00:18]} 44. Rb7 {[%emt 0:03:47]} Qe2 {[%emt 0:00:42]} 45. Qxe2 {[%emt 0:00:37]} Nxe2 {[%emt 0:00:05]} 46. d7 {[%emt 0:01:45]} Kf8 {[%emt 0:00:50]} 47. Nb6 {[%emt 0:02:53]} Bf6 {[%emt 0:00:33]} 48. Bf1 {[%emt 0:00:42]} Nc3 {[%emt 0:00:22]} 49. Bd3 {[%emt 0:00:26]} Nd1 {[%emt 0:00:36]} 50. Kg2 {[%emt 0:00:21]} Nc3 {[%emt 0:00:32]} 51. Rc7 {[%emt 0:01:02]} Be7 {[%emt 0:00:31]} 52. Rxc3 {[%emt 0:00:28]} 1-0